[Event "WALTON 1st Div Women League 2023"]
[Site "Dhaka"]
[Date "2023.03.26"]
[Round "5.6"]
[White "Sharmin, Khan"]
[Black "Afrin Jahan, Munia"]
[Result "0-1"]
[ECO "D02"]
[WhiteElo "1290"]
[BlackElo "1634"]
[Annotator "NA RC COMBH"]
[PlyCount "142"]
[EventDate "2023.03.22"]
[EventType "team-tourn"]
[EventCountry "BAN"]
[SourceTitle "playchess.com"]
[Source "ChessBase"]
[SourceQuality "1"]
[TimeControl "5400+30"]

1. d4 {[%emt 0:00:04]} d5 {[%emt 0:00:16]} 2. Nf3 {[%emt 0:00:12]} Bf5 {[%emt 0:00:29]} 3. c3 {[%emt 0:00:43]} Nf6 {[%emt 0:00:30]} 4. Bf4 {[%emt 0:01:29]} h6 {[%emt 0:00:14]} 5. e3 {[%emt 0:00:45]} Nh5 {[%emt 0:01:16]} 6. Bg3 {[%emt 0:01:09]} Nxg3 {[%emt 0:00:20]} 7. hxg3 {[%emt 0:00:20]} e6 {[%emt 0:00:28]} 8. Qa4+ {[%emt 0:01:27]} c6 {[%emt 0:00:19]} 9. Qd1 {[%emt 0:01:09]} Qb6 {[%emt 0:01:12]} 10. b3 {[%emt 0:00:58]} c5 {[%emt 0:00:30]} 11. Bd3 {[%emt 0:02:38]} Bxd3 {[%emt 0:02:15]} 12. Qxd3 {[%emt 0:00:23]} Nc6 {[%emt 0:00:13]} 13. O-O {[%emt 0:04:16]} Bd6 {[%emt 0:00:13]} 14. Nbd2 {[%emt 0:01:07]} f5 {[%emt 0:02:08]} 15. Qc2 {[%emt 0:02:12]} Qd8 {[%emt 0:00:47]} 16. Rfe1 {[%emt 0:01:13]} h5 {[%emt 0:00:19]} 17. dxc5 {[%emt 0:05:51]} Bxc5 {[%emt 0:02:05]} 18. Qd1 {[%emt 0:04:10]} g5 {[%emt 1:25:56]} 19. Nd4 {[%emt 0:02:41]} Qf6 {[%emt 0:00:00]} 20. Rc1 {[%emt 0:02:38]} g4 {[%emt 0:00:00]} 21. Kf1 {[%emt 0:07:05]} h4 {[%emt 0:00:00]} 22. gxh4 {[%emt 0:00:57]} Rxh4 {[%emt 0:00:00]} 23. Nxc6 {[%emt 0:01:16]} bxc6 {[%emt 0:00:00]} 24. f4 {[%emt 0:04:59]} gxf3 {[%emt 0:00:00]} 25. Qxf3 {[%emt 0:00:21]} Qg5 {[%emt 0:00:00]} 26. c4 {[%emt 0:04:58]} Bb4 {[%emt 0:00:00]} 27. Rc2 {[%emt 0:01:03]} Kd7 {[%emt 0:00:00]} 28. cxd5 {[%emt 0:02:13]} exd5 {[%emt 0:00:00]} 29. Rd1 {[%emt 0:02:26]} Re8 {[%emt 0:00:00]} 30. Nc4 {[%emt 0:04:08]} Rh1+ {[%emt 0:00:00]} 31. Ke2 {[%emt 0:02:22]} Rxd1 {[%emt 0:00:00]} 32. Kxd1 {[%emt 0:00:32]} dxc4 {[%emt 0:00:00]} 33. Rxc4 {[%emt 0:01:03]} c5 {[%emt 0:00:00]} 34. Qd5+ {[%emt 0:02:19]} Ke7 {[%emt 0:00:00]} 35. Ke2 {[%emt 0:05:50]} Kf8 {[%emt 0:00:00]} 36. Qf3 {[%emt 0:04:38]} Qf6 {[%emt 0:00:00]} 37. Rc2 {[%emt 0:01:22]} f4 {[%emt 0:00:00]} 38. e4 {[%emt 0:01:05]} Qe5 {[%emt 0:00:00]} 39. g3 {[%emt 0:01:38]} Qxe4+ {[%emt 0:00:00]} 40. Qxe4 {[%emt 0:00:12]} Rxe4+ {[%emt 0:00:00]} 41. Kf3 {[%emt 0:01:05]} Rd4 {[%emt 0:00:00]} 42. gxf4 {[%emt 0:00:40]} Rd2 {[%emt 0:00:00]} 43. Rxd2 {[%emt 0:00:42]} Bxd2 {[%emt 0:00:00]} 44. Ke4 {[%emt 0:00:30]} Ke7 {[%emt 0:00:00]} 45. f5 {[%emt 0:00:23]} Kf6 {[%emt 0:00:00]} 46. Kd3 {[%emt 0:01:00]} Bb4 {[%emt 0:00:00]} 47. Ke4 {[%emt 0:00:29]} Ba3 {[%emt 0:00:00]} 48. Kd5 {[%emt 0:01:33]} Kxf5 {[%emt 0:00:00]} 49. Kc6 {[%emt 0:00:11]} a5 {[%emt 0:00:00]} 50. Kb5 {[%emt 0:00:15]} Bb4 {[%emt 0:00:00]} 51. Kc4 {[%emt 0:01:06]} Ke4 {[%emt 0:00:00]} 52. Kb5 {[%emt 0:01:38]} Kd4 {[%emt 0:00:00]} 53. Ka4 {[%emt 0:00:19]} Kd3 {[%emt 0:00:00]} 54. a3 {[%emt 0:00:50]} Bd2 {[%emt 0:00:00]} 55. Kb5 {[%emt 0:04:38]} Kc3 {[%emt 0:00:00]} 56. Ka4 {[%emt 0:02:47]} Kb2 {[%emt 0:00:00]} 57. Kb5 {[%emt 0:01:29]} Kxb3 {[%emt 0:00:00]} 58. Kxc5 {[%emt 0:00:06]} Kxa3 {[%emt 0:00:00]} 59. Kc4 {[%emt 0:00:13]} Kb2 {[%emt 0:00:00]} 60. Kd3 {[%emt 0:00:26]} Bc3 {[%emt 0:00:00]} 61. Kc4 {[%emt 0:00:20]} a4 {[%emt 0:00:00]} 62. Kd3 {[%emt 0:01:40]} a3 {[%emt 0:00:00]} 63. Ke4 {[%emt 0:00:23]} a2 {[%emt 0:00:00]} 64. Kd5 {[%emt 0:00:22]} a1=Q {[%emt 0:00:00]} 65. Kc4 {[%emt 0:00:22]} Qa4+ {[%emt 0:00:00]} 66. Kd5 {[%emt 0:00:40]} Qd4+ {[%emt 0:00:00]} 67. Kc6 {[%emt 0:00:25]} Ba5 {[%emt 0:00:00]} 68. Kb5 {[%emt 0:00:25]} Qd5+ {[%emt 0:00:00]} 69. Ka4 {[%emt 0:01:05]} Bb6 {[%emt 0:00:00]} 70. Kb4 {[%emt 0:00:29]} Qc5+ {[%emt 0:00:00]} 71. Ka4 {[%emt 0:00:41]} Qa5# {[%emt 0:00:00]} 0-1

[Event "WALTON 1st Div Women League 2023"]
[Site "Dhaka"]
[Date "2023.03.26"]
[Round "5.8"]
[White "Mahjabeen, Islam"]
[Black "Kishoara, Shajrin Evana"]
[Result "0-1"]
[ECO "B86"]
[WhiteElo "1180"]
[BlackElo "1544"]
[Annotator "NA RC COMBH"]
[PlyCount "46"]
[EventDate "2023.03.22"]
[EventType "team-tourn"]
[EventCountry "BAN"]
[SourceTitle "playchess.com"]
[Source "ChessBase"]
[SourceQuality "1"]
[TimeControl "5400+30"]

1. e4 {[%emt 0:00:08]} c5 {[%emt 0:00:15]} 2. Nf3 {[%emt 0:00:09]} d6 {[%emt 0:00:30]} 3. Bc4 {[%emt 0:01:16]} e6 {[%emt 0:01:43]} 4. d4 {[%emt 0:04:20]} cxd4 {[%emt 0:00:28]} 5. Nxd4 {[%emt 0:00:19]} Nf6 {[%emt 0:01:11]} 6. Nc3 {[%emt 0:00:44]} a6 {[%emt 0:01:34]} 7. a3 {[%emt 0:03:12]} Qc7 {[%emt 0:01:41]} 8. Be2 {[%emt 0:02:46]} Nc6 {[%emt 0:02:13]} 9. Be3 {[%emt 0:06:23]} Nxd4 {[%emt 0:11:18]} 10. Bxd4 {[%emt 0:01:46]} Be7 {[%emt 0:03:03]} 11. O-O {[%emt 0:01:27]} b5 {[%emt 0:01:06]} 12. b4 {[%emt 0:01:55]} e5 {[%emt 0:01:28]} 13. Nd5 {[%emt 0:03:44]} Nxd5 {[%emt 0:01:01]} 14. Bxe5 {[%emt 0:04:03]} Nc3 {[%emt 0:06:15]} 15. Bxc3 {[%emt 0:00:17]} Qxc3 {[%emt 0:00:11]} 16. Qd5 {[%emt 0:01:54]} Ra7 {[%emt 0:03:12]} 17. f4 {[%emt 0:03:35]} Be6 {[%emt 0:02:56]} 18. Bxb5+ {[%emt 0:15:15]} axb5 {[%emt 0:04:27]} 19. Qxb5+ {[%emt 0:00:11]} Rd7 {[%emt 0:00:23]} 20. Qb8+ {[%emt 0:01:42]} Rd8 {[%emt 0:00:32]} 21. Qb5+ {[%emt 0:00:14]} Bd7 {[%emt 0:00:15]} 22. Qb6 {[%emt 0:01:41]} Qxc2 {[%emt 0:01:48]} 23. Rac1 {[%emt 0:01:22]} Qxe4 {[%emt 0:00:48]} 0-1

[Event "WALTON 1st Div Women League 2023"]
[Site "Dhaka"]
[Date "2023.03.26"]
[Round "5.9"]
[White "Nazia, Jafrin Mohona"]
[Black "Wadifa, Ahmed"]
[Result "0-1"]
[ECO "B47"]
[WhiteElo "1206"]
[BlackElo "1811"]
[Annotator "NA RC COMBH"]
[PlyCount "104"]
[EventDate "2023.03.22"]
[EventType "team-tourn"]
[EventCountry "BAN"]
[SourceTitle "playchess.com"]
[Source "ChessBase"]
[SourceQuality "1"]
[TimeControl "5400+30"]

{[%evp 59,103,-875,-851,-835,-734,-746,-831,-853,-931,-1131,-907,-2181,-1031,-5243,-29969,-4790,-29970,-29980,-29979,-12841,-29984,-29981,-12846,-29983,-29986,-29984,-29985,-29986,-29986,-29990,-29988,-29989,-29991,-29990,-29991,-29995,-29996,-29996,-29996,-29997,-29997,-29997,-29998,-29998,-27999,-29999]} 1. e4 {[%emt 0:20:55]} c5 {[%emt 0:00:06]} 2. Nc3 {[%emt 0:00:45]} e6 {[%emt 0:00:08]} 3. Nf3 {[%emt 0:00:25]} a6 {[%emt 0:00:10]} 4. d4 {[%emt 0:00:28]} cxd4 {[%emt 0:00:06]} 5. Nxd4 {[%emt 0:00:15]} Qc7 {[%emt 0:00:10]} 6. Be2 {[%emt 0:01:27]} Nc6 {[%emt 0:00:10]} 7. Nxc6 {[%emt 0:00:26]} bxc6 {[%emt 0:00:13]} 8. O-O {[%emt 0:00:28]} Nf6 {[%emt 0:03:25]} 9. Be3 {[%emt 0:00:40]} d5 {[%emt 0:07:46]} 10. exd5 {[%emt 0:00:22]} cxd5 {[%emt 0:00:08]} 11. Bd4 {[%emt 0:03:38]} Be7 {[%emt 0:05:15]} 12. Bxf6 {[%emt 0:00:53]} Bxf6 {[%emt 0:00:20]} 13. Bf3 {[%emt 0:00:37]} O-O {[%emt 0:00:42]} 14. h3 {[%emt 0:03:02]} Bxc3 {[%emt 0:02:46]} 15. bxc3 {[%emt 0:00:14]} Qxc3 {[%emt 0:00:09]} 16. Re1 {[%emt 0:01:59]} Bd7 {[%emt 0:01:21]} 17. Re3 {[%emt 0:00:56]} Qc7 {[%emt 0:00:17]} 18. Bg4 {[%emt 0:01:06]} Rac8 {[%emt 0:03:33]} 19. Re2 {[%emt 0:01:04]} Rfd8 {[%emt 0:00:43]} 20. Rc1 {[%emt 0:02:19]} Bb5 {[%emt 0:01:49]} 21. Re1 {[%emt 0:00:27]} Qa5 {[%emt 0:00:27]} 22. Ra1 {[%emt 0:01:02]} h6 {[%emt 0:01:14]} 23. a4 {[%emt 0:02:53]} Bd7 {[%emt 0:01:45]} 24. Qc1 {[%emt 0:56:09]} Rc4 {[%emt 0:00:50]} 25. Be2 {[%emt 0:00:00]} Rxa4 {[%emt 0:03:29]} 26. Rxa4 {[%emt 0:00:00]} Qxa4 {[%emt 0:00:10]} 27. c4 {[%emt 0:00:00]} dxc4 {[%emt 0:01:36]} 28. Bxc4 {[%emt 0:00:00]} Rc8 {[%emt 0:00:30]} 29. Re4 {[%emt 0:00:00]} Bb5 {[%emt 0:00:39]} 30. Qe1 {[%emt 0:00:00]} Bxc4 {[%emt 0:02:00]} 31. Qd2 {[%emt 0:00:00]} Qa1+ {[%emt 0:02:08]} 32. Re1 {[%emt 0:00:00]} Qa2 {[%emt 0:00:23]} 33. Qxa2 $19 {[%emt 0:00:00]} Bxa2 {[%emt 0:00:03]} 34. g4 {[%emt 0:00:00]} a5 {[%emt 0:00:07]} 35. Kh2 {[%emt 0:00:00]} a4 {[%emt 0:00:07]} 36. f4 {[%emt 0:00:00]} Bd5 {[%emt 0:00:15]} 37. Kg3 {[%emt 0:00:00]} a3 {[%emt 0:00:13]} 38. f5 {[%emt 0:00:00]} a2 {[%emt 0:00:11]} 39. fxe6 {[%emt 0:07:30]} fxe6 {[%emt 0:00:21]} 40. h4 {[%emt 0:00:00]} Rc2 {[%emt 0:00:18]} (40... Rb8 $142 41. Ra1 Rb1 42. Rxa2 Bxa2 43. Kf3 Rb4 44. Ke3 e5 45. Kd2 Bd5 46. Ke3 Rb3+ 47. Kf2 e4 48. Kg2 e3+ 49. Kg3 Rb4 50. g5 Re4 51. Kh3 e2 52. gxh6 e1=Q 53. h7+ Kxh7 54. h5 Rh4#) 41. g5 {[%emt 0:00:00]} hxg5 {[%emt 0:00:29]} 42. hxg5 {[%emt 0:00:00]} Kf7 {[%emt 0:00:02]} 43. Kf4 {[%emt 0:00:00]} Rf2+ {[%emt 0:00:27]} 44. Kg4 {[%emt 0:00:00]} Rb2 {[%emt 0:00:34]} 45. Rf1+ {[%emt 0:00:00]} Kg6 {[%emt 0:00:08]} 46. Ra1 {[%emt 0:03:30]} Rb1 {[%emt 0:00:09]} 47. Rxb1 {[%emt 0:00:00]} axb1=Q {[%emt 0:00:13]} 48. Kf4 {[%emt 0:00:00]} Qc1+ {[%emt 0:00:53]} 49. Kg3 {[%emt 0:00:00]} Qxg5+ {[%emt 0:00:05]} 50. Kf2 {[%emt 0:00:00]} Qd2+ {[%emt 0:00:14]} 51. Kg3 {[%emt 0:00:00]} Kg5 {[%emt 0:00:16]} 52. Kh3 {[%emt 0:00:00]} Qg2# {[%emt 0:00:48]} 0-1

[Event "WALTON 1st Div Women League 2023"]
[Site "Dhaka"]
[Date "2023.03.26"]
[Round "5.10"]
[White "Noshin, Anjum"]
[Black "Jarin, Tasnim"]
[Result "1-0"]
[ECO "C78"]
[WhiteElo "1877"]
[BlackElo "1180"]
[Annotator "NA RC COMBH"]
[PlyCount "51"]
[EventDate "2023.03.22"]
[EventType "team-tourn"]
[EventCountry "BAN"]
[SourceTitle "playchess.com"]
[Source "ChessBase"]
[SourceQuality "1"]
[TimeControl "5400+30"]

1. e4 {[%emt 0:02:08]} e5 {[%emt 0:17:49]} 2. Nf3 {[%emt 0:00:08]} Nc6 {[%emt 0:00:10]} 3. Bb5 {[%emt 0:00:14]} a6 {[%emt 0:00:44]} 4. Ba4 {[%emt 0:00:25]} b5 {[%emt 0:00:25]} 5. Bb3 {[%emt 0:00:07]} Nf6 {[%emt 0:00:27]} 6. O-O {[%emt 0:00:12]} d6 {[%emt 0:00:27]} 7. c3 {[%emt 0:00:14]} Bb7 {[%emt 0:01:44]} 8. Re1 {[%emt 0:00:27]} Na5 {[%emt 0:00:47]} 9. Bc2 {[%emt 0:00:42]} Nc6 {[%emt 0:01:10]} 10. d4 {[%emt 0:00:27]} Be7 {[%emt 0:02:14]} 11. Nbd2 {[%emt 0:00:57]} O-O {[%emt 0:01:28]} 12. Nf1 {[%emt 0:00:13]} h6 {[%emt 0:01:09]} 13. Ng3 {[%emt 0:00:16]} Nh7 {[%emt 0:02:57]} 14. Nf5 {[%emt 0:00:54]} Bf6 {[%emt 0:00:59]} 15. h3 {[%emt 0:01:01]} Re8 {[%emt 0:02:05]} 16. Nh2 {[%emt 0:04:11]} Ne7 {[%emt 0:01:44]} 17. dxe5 {[%emt 0:09:24]} dxe5 {[%emt 0:01:54]} 18. Qd4 {[%emt 1:17:30]} Qd7 19. Qxd7 {[%emt 0:00:00]} Rac8 {[%emt 1:01:47]} 20. Qd8 Rcxd8 {[%emt 0:00:00]} 21. Ng4 {[%emt 0:00:00]} Nxf5 {[%emt 0:00:00]} 22. exf5 {[%emt 0:00:00]} Bg5 {[%emt 0:00:00]} 23. Bxg5 {[%emt 0:00:00]} Nxg5 {[%emt 0:00:00]} 24. Nxe5 {[%emt 0:00:00]} f6 {[%emt 0:00:00]} 25. Bb3+ {[%emt 0:00:00]} Kf8 {[%emt 0:00:00]} 26. Ng6# {[%emt 0:00:00]} 1-0

[Event "WALTON 1st Div Women League 2023"]
[Site "Dhaka"]
[Date "2023.03.26"]
[Round "5.11"]
[White "Zowena, Mehbish"]
[Black "Kazi Zarin, Tasnim"]
[Result "0-1"]
[ECO "C50"]
[WhiteElo "1121"]
[BlackElo "1837"]
[Annotator "NA RC COMBH"]
[PlyCount "36"]
[EventDate "2023.03.22"]
[EventType "team-tourn"]
[EventCountry "BAN"]
[SourceTitle "playchess.com"]
[Source "ChessBase"]
[SourceQuality "1"]
[TimeControl "5400+30"]

1. e4 {[%emt 0:20:10]} e5 {[%emt 0:00:24]} 2. Nf3 {[%emt 0:00:27]} Nc6 {[%emt 0:00:06]} 3. Bc4 {[%emt 0:00:25]} Bc5 {[%emt 0:00:16]} 4. Nc3 {[%emt 0:00:57]} Nf6 {[%emt 0:00:14]} 5. d3 {[%emt 0:00:35]} a6 {[%emt 0:00:16]} 6. O-O {[%emt 0:01:30]} d6 {[%emt 0:00:20]} 7. h3 {[%emt 0:00:14]} Na5 {[%emt 0:04:20]} 8. Bb3 {[%emt 0:01:55]} O-O {[%emt 0:02:27]} 9. Bg5 {[%emt 0:03:33]} Nxb3 {[%emt 0:00:31]} 10. axb3 {[%emt 0:00:21]} h6 {[%emt 0:00:06]} 11. Bh4 {[%emt 0:00:27]} g5 {[%emt 0:00:11]} 12. Bg3 {[%emt 0:00:05]} Nh5 {[%emt 0:02:48]} 13. Bh2 {[%emt 0:00:49]} g4 {[%emt 0:05:25]} 14. Nd2 {[%emt 0:04:32]} Qh4 {[%emt 0:02:49]} 15. Kh1 {[%emt 0:03:40]} Bxf2 {[%emt 0:03:10]} 16. Ne2 {[%emt 0:02:54]} g3 {[%emt 0:12:22]} 17. Bg1 {[%emt 0:00:27]} Bg4 {[%emt 0:05:09]} 18. b4 {[%emt 0:04:49]} Nf4 {[%emt 0:01:54]} 0-1

[Event "WALTON 1st Div Women League 2023"]
[Site "Dhaka"]
[Date "2023.03.26"]
[Round "5.12"]
[White "Warsia, Khusbu"]
[Black "Nusrat Jahan, Alo"]
[Result "1-0"]
[ECO "C50"]
[WhiteElo "1836"]
[BlackElo "1787"]
[Annotator "NA RC COMBH"]
[PlyCount "29"]
[EventDate "2023.03.22"]
[EventType "team-tourn"]
[EventCountry "BAN"]
[SourceTitle "playchess.com"]
[Source "ChessBase"]
[SourceQuality "1"]
[TimeControl "5400+30"]

1. e4 {[%emt 0:00:01]} e5 {[%emt 0:51:14]} 2. Nf3 {[%emt 0:00:26]} Nc6 {[%emt 0:00:12]} 3. Bc4 {[%emt 0:00:08]} Bc5 {[%emt 0:00:11]} 4. O-O {[%emt 0:00:13]} Nf6 {[%emt 0:00:04]} 5. d3 {[%emt 0:00:09]} d6 {[%emt 0:00:06]} 6. h3 {[%emt 0:00:06]} a6 {[%emt 0:00:07]} 7. Bg5 {[%emt 0:00:06]} h6 {[%emt 0:00:24]} 8. Bh4 {[%emt 0:00:06]} O-O {[%emt 0:02:36]} 9. Nc3 {[%emt 0:00:13]} b5 {[%emt 0:01:36]} 10. Bb3 {[%emt 0:00:09]} Bb7 {[%emt 0:00:12]} 11. Nd5 {[%emt 0:00:08]} g5 {[%emt 0:01:22]} 12. Nxg5 {[%emt 0:01:59]} Nxd5 {[%emt 0:01:06]} 13. exd5 {[%emt 0:00:08]} hxg5 {[%emt 0:00:25]} 14. dxc6 {[%emt 0:00:04]} Bxc6 {[%emt 0:00:05]} 15. Qg4 {[%emt 0:00:18]} 1-0

[Event "WALTON 1st Div Women League 2023"]
[Site "Dhaka"]
[Date "2023.03.26"]
[Round "5.13"]
[White "Sidratul, Muntaha"]
[Black "Jannatul, Ferdous"]
[Result "0-1"]
[ECO "C13"]
[WhiteElo "1185"]
[BlackElo "1697"]
[Annotator "NA RC COMBH"]
[PlyCount "64"]
[EventDate "2023.03.22"]
[EventType "team-tourn"]
[EventCountry "BAN"]
[SourceTitle "playchess.com"]
[Source "ChessBase"]
[SourceQuality "1"]
[TimeControl "5400+30"]

1. d4 {[%emt 0:00:02]} d5 {[%emt 0:00:04]} 2. Nc3 {[%emt 0:00:14]} Nf6 {[%emt 0:00:23]} 3. Bg5 {[%emt 0:00:25]} e6 {[%emt 0:00:15]} 4. e4 {[%emt 0:00:42]} dxe4 {[%emt 0:00:59]} 5. Nxe4 {[%emt 0:00:32]} Nbd7 {[%emt 0:00:38]} 6. Ng3 {[%emt 0:00:44]} h6 {[%emt 0:01:13]} 7. Be3 {[%emt 0:00:40]} Be7 {[%emt 0:01:20]} 8. Nf3 {[%emt 0:02:03]} O-O {[%emt 0:00:32]} 9. Bc4 {[%emt 0:00:36]} Nb6 {[%emt 0:00:52]} 10. Bb3 {[%emt 0:00:25]} a5 {[%emt 0:00:47]} 11. a4 {[%emt 0:00:53]} Nbd5 {[%emt 0:00:22]} 12. Qd2 {[%emt 0:01:43]} b6 {[%emt 0:01:23]} 13. Bxd5 {[%emt 0:00:27]} Nxd5 {[%emt 0:00:12]} 14. c3 {[%emt 0:00:35]} Ba6 {[%emt 0:00:13]} 15. Ne2 {[%emt 0:01:47]} Bd6 {[%emt 0:07:30]} 16. g3 {[%emt 0:03:04]} Bb7 {[%emt 0:01:13]} 17. Rg1 {[%emt 0:05:08]} Nxc3 {[%emt 0:07:50]} 18. Nxc3 {[%emt 0:02:19]} Bxf3 {[%emt 0:00:10]} 19. Nb5 {[%emt 0:05:56]} Bb4 {[%emt 0:00:08]} 20. Nc3 {[%emt 0:01:02]} Re8 {[%emt 0:00:45]} 21. Qd3 {[%emt 0:01:02]} Qf6 {[%emt 0:01:07]} 22. Bf4 {[%emt 0:04:23]} e5 {[%emt 0:16:59]} 23. dxe5 {[%emt 0:03:25]} Qc6 {[%emt 0:01:02]} 24. g4 {[%emt 0:13:28]} Rad8 {[%emt 0:01:22]} 25. Qc2 {[%emt 0:01:47]} Rd4 {[%emt 0:02:00]} 26. Bg3 {[%emt 0:01:49]} Re4+ {[%emt 0:01:14]} 27. Kd2 {[%emt 0:01:16]} Re2+ {[%emt 0:00:12]} 28. Kd1 {[%emt 0:00:32]} Rd8+ {[%emt 0:00:23]} 29. Kc1 {[%emt 0:00:26]} Rxc2+ {[%emt 0:00:20]} 30. Kxc2 {[%emt 0:00:30]} Be4+ {[%emt 0:00:04]} 31. Kb3 {[%emt 0:00:53]} Qe6+ {[%emt 0:00:37]} 32. Nd5 {[%emt 0:00:25]} Qxd5# {[%emt 0:00:03]} 0-1

[Event "WALTON 1st Div Women League 2023"]
[Site "Dhaka"]
[Date "2023.03.26"]
[Round "5.14"]
[White "Nusrat Jahan, Alo"]
[Black "Sonia, Akhter"]
[Result "1-0"]
[ECO "C50"]
[WhiteElo "1787"]
[BlackElo "1180"]
[Annotator "NA RC COMBH"]
[PlyCount "87"]
[EventDate "2023.03.22"]
[EventType "team-tourn"]
[EventCountry "BAN"]
[SourceTitle "playchess.com"]
[Source "ChessBase"]
[SourceQuality "1"]
[TimeControl "5400+30"]

1. e4 {[%emt 0:00:03]} e5 {[%emt 0:02:54]} 2. Nf3 {[%emt 0:00:12]} Nc6 {[%emt 0:00:34]} 3. Bc4 {[%emt 0:00:08]} h6 {[%emt 0:00:39]} 4. c3 {[%emt 0:00:21]} d6 {[%emt 0:01:44]} 5. d4 {[%emt 0:00:07]} Bg4 {[%emt 0:03:43]} 6. d5 {[%emt 0:05:13]} Nb8 {[%emt 0:05:21]} 7. O-O {[%emt 0:02:18]} Nf6 {[%emt 0:01:20]} 8. Re1 {[%emt 0:00:15]} Be7 {[%emt 0:00:27]} 9. h3 {[%emt 0:01:07]} Bh5 {[%emt 0:00:19]} 10. Qb3 {[%emt 0:02:13]} b6 {[%emt 0:02:24]} 11. Bb5+ {[%emt 0:00:29]} Nbd7 {[%emt 0:00:58]} 12. Bc6 {[%emt 0:00:25]} Rb8 {[%emt 0:00:54]} 13. c4 {[%emt 0:00:22]} O-O {[%emt 0:00:33]} 14. Nbd2 {[%emt 0:03:55]} Nc5 {[%emt 0:00:48]} 15. Qc3 {[%emt 0:00:27]} a5 {[%emt 0:01:17]} 16. a3 {[%emt 0:03:53]} Bxf3 {[%emt 0:00:44]} 17. Qxf3 {[%emt 0:00:27]} Nh7 {[%emt 0:02:25]} 18. b4 {[%emt 0:01:05]} Nb7 {[%emt 0:02:52]} 19. Nb3 {[%emt 0:01:10]} Qc8 {[%emt 0:10:37]} 20. Bxb7 {[%emt 0:01:06]} Qxb7 {[%emt 0:01:10]} 21. bxa5 {[%emt 0:00:04]} b5 {[%emt 0:02:54]} 22. cxb5 {[%emt 0:02:10]} Qxb5 {[%emt 0:02:43]} 23. Rb1 {[%emt 0:01:29]} Qd7 {[%emt 0:00:31]} 24. Bd2 {[%emt 0:00:45]} Rb7 {[%emt 0:02:40]} 25. Bb4 {[%emt 0:00:07]} c5 {[%emt 0:02:15]} 26. dxc6 {[%emt 0:00:27]} Qxc6 {[%emt 0:02:05]} 27. Rbc1 {[%emt 0:01:25]} Qd7 {[%emt 0:00:53]} 28. Red1 {[%emt 0:00:13]} Ng5 {[%emt 0:01:01]} 29. Qe2 {[%emt 0:04:19]} Qe6 {[%emt 0:01:25]} 30. Rc3 {[%emt 0:06:25]} Rd8 {[%emt 0:07:41]} 31. a6 {[%emt 0:01:01]} Rbd7 {[%emt 0:01:44]} 32. Na5 {[%emt 0:01:55]} Ra8 {[%emt 0:05:08]} 33. Rc6 {[%emt 0:03:26]} Qg6 {[%emt 0:01:52]} 34. Qg4 {[%emt 0:02:11]} Rda7 {[%emt 0:03:10]} 35. Rc8+ {[%emt 0:04:21]} Rxc8 {[%emt 0:01:32]} 36. Qxc8+ {[%emt 0:00:14]} Kh7 {[%emt 0:00:56]} 37. Nc6 {[%emt 0:00:18]} Qf6 {[%emt 0:03:44]} 38. Nxa7 {[%emt 0:01:10]} Nxe4 {[%emt 0:01:13]} 39. Qc2 {[%emt 0:00:19]} Qg6 {[%emt 0:03:40]} 40. f3 {[%emt 0:00:12]} f5 {[%emt 0:04:08]} 41. fxe4 {[%emt 0:00:11]} Bd8 {[%emt 0:01:11]} 42. Rxd6 {[%emt 0:00:27]} Qg3 {[%emt 0:01:08]} 43. Rxd8 {[%emt 0:00:44]} Qe3+ {[%emt 0:01:04]} 44. Qf2 {[%emt 0:00:10]} 1-0

[Event "WALTON 1st Div Women League 2023"]
[Site "Dhaka"]
[Date "2023.03.27"]
[Round "6.1"]
[White "Rashma, Alam"]
[Black "Nusrat Jahan, Alo"]
[Result "0-1"]
[ECO "C00"]
[WhiteElo "1047"]
[BlackElo "1787"]
[Annotator "NA RC COMBH"]
[PlyCount "82"]
[EventDate "2023.03.22"]
[EventType "team-tourn"]
[EventCountry "BAN"]
[SourceTitle "playchess.com"]
[Source "ChessBase"]
[SourceQuality "1"]
[TimeControl "5400+30"]

1. e4 {[%emt 0:04:01]} c5 {[%emt 0:00:34]} 2. d3 {[%emt 0:01:06]} e6 {[%emt 0:00:29]} 3. Nh3 {[%emt 0:02:34]} Nc6 {[%emt 0:00:33]} 4. c3 {[%emt 0:02:17]} d5 {[%emt 0:01:04]} 5. Be3 {[%emt 0:07:05]} d4 {[%emt 0:03:19]} 6. cxd4 {[%emt 0:01:06]} cxd4 {[%emt 0:02:00]} 7. Bd2 {[%emt 0:01:30]} Qb6 {[%emt 0:00:30]} 8. b3 {[%emt 0:02:43]} a5 {[%emt 0:09:47]} 9. Ng5 {[%emt 0:04:47]} a4 {[%emt 0:02:25]} 10. bxa4 {[%emt 0:02:52]} Qb2 {[%emt 0:02:20]} 11. Na3 {[%emt 0:08:58]} Qxa3 {[%emt 0:01:34]} 12. Bc1 {[%emt 0:02:02]} Bb4+ {[%emt 0:03:22]} 13. Bd2 {[%emt 0:00:30]} Qxa4 {[%emt 0:00:22]} 14. Qxa4 {[%emt 0:02:54]} Bxd2+ {[%emt 0:00:14]} 15. Kxd2 {[%emt 0:01:50]} Rxa4 {[%emt 0:00:04]} 16. Nf3 {[%emt 0:01:54]} e5 {[%emt 0:00:20]} 17. Be2 {[%emt 0:00:22]} f6 {[%emt 0:01:12]} 18. Rhc1 {[%emt 0:00:54]} Be6 {[%emt 0:01:12]} 19. Rc2 {[%emt 0:01:50]} Kd7 {[%emt 0:04:14]} 20. Bd1 {[%emt 0:07:06]} Bb3 {[%emt 0:13:04]} 21. Rb2 {[%emt 0:13:59]} Bxd1 {[%emt 0:00:48]} 22. Rxd1 {[%emt 0:01:59]} Kc7 {[%emt 0:00:47]} 23. Rc1 {[%emt 0:01:20]} Nge7 {[%emt 0:00:27]} 24. Ne1 {[%emt 0:01:22]} Rha8 {[%emt 0:00:27]} 25. Ra1 {[%emt 0:02:50]} Rb4 {[%emt 0:04:58]} 26. Rc2 {[%emt 0:01:12]} b5 {[%emt 0:01:20]} 27. Rc5 {[%emt 0:02:50]} Kd6 {[%emt 0:02:31]} 28. Rcc1 {[%emt 0:02:52]} Rba4 {[%emt 0:01:52]} 29. Rc2 {[%emt 0:01:03]} Nb4 {[%emt 0:01:00]} 30. Rb2 {[%emt 0:01:06]} Rxa2 {[%emt 0:00:36]} 31. Raxa2 {[%emt 0:01:51]} Rxa2 {[%emt 0:00:07]} 32. Rxa2 {[%emt 0:01:57]} Nxa2 {[%emt 0:00:04]} 33. Kc2 {[%emt 0:00:55]} Kc5 {[%emt 0:00:24]} 34. Kb3 {[%emt 0:00:31]} Nc3 {[%emt 0:00:09]} 35. Nc2 {[%emt 0:00:39]} Nc6 {[%emt 0:00:07]} 36. Na3 {[%emt 0:04:10]} Na5+ {[%emt 0:00:12]} 37. Kc2 {[%emt 0:01:59]} b4 {[%emt 0:00:10]} 38. Nb1 {[%emt 0:00:31]} b3+ {[%emt 0:00:16]} 39. Kb2 {[%emt 0:00:48]} Kb4 {[%emt 0:45:06]} 40. Nd2 {[%emt 0:01:38]} Nd1+ {[%emt 0:00:00]} 41. Kc1 {[%emt 0:00:30]} Nxf2 {[%emt 0:00:00]} 0-1